fUST/lending_fUST_20250910
["ID","MTS","AMOUNT","RATE_DAILY","PERIOD"]
[384536832,1757452242826,-501.92,0.00014794,2]
[384536833,1757452242836,-480.0,0.00014794,2]
[384536835,1757452242845,-480.0,0.00014794,2]
[384536837,1757452242855,-480.0,0.00014794,2]
[384536840,1757452242866,-566.6,0.00014794,2]
[384536842,1757452242880,-480.0,0.00014794,2]
[384536844,1757452242889,-480.0,0.00014794,2]
[384536845,1757452242898,-990.69,0.00014794,2]
[384536848,1757452242909,-628.07,0.00014794,2]
[384536849,1757452242918,-480.0,0.00014794,2]
[384536851,1757452242927,-926.17,0.00014794,2]
[384536854,1757452242936,-480.0,0.00014794,2]
[384536856,1757452242946,-542.61,0.00014794,2]
[384536858,1757452242955,-305.01823303,0.00014794,2]
[384536860,1757452242965,-480.0,0.00014794,2]
[384536862,1757452242974,-150.0,0.00014897,2]
[384536864,1757452242984,-160.0,0.000149,2]
[384536866,1757452242993,-150.22,0.000149,2]
[384536869,1757452243002,-150.22,0.000149,2]
[384536872,1757452243012,-150.22,0.000149,2]
[384536874,1757452243021,-634.0,0.00014919,2]
[384536876,1757452243032,-2154.0,0.00014919,2]
[384536878,1757452243042,-160.0,0.00014938,2]
[384536880,1757452243051,-976.0,0.00014969,2]
[384536882,1757452243061,-160.0,0.00015,2]
[384536884,1757452243070,-480.0,0.00015068,2]
[384536886,1757452243080,-480.0,0.00015068,2]
[384536888,1757452243091,-480.0,0.00015068,2]
[384536890,1757452243100,-480.0,0.00015068,2]
[384536892,1757452243110,-480.0,0.00015068,2]
[384536894,1757452243120,-480.0,0.00015068,2]
[384536896,1757452243129,-480.0,0.00015068,2]
[384536898,1757452243138,-480.0,0.00015068,2]
[384536901,1757452243147,-480.0,0.00015068,2]
[384536904,1757452243157,-480.0,0.00015068,2]
[384536907,1757452243166,-480.0,0.00015068,2]
[384536909,1757452243176,-480.0,0.00015068,2]
[384536911,1757452243186,-480.0,0.00015068,2]
[384536913,1757452243195,-480.0,0.00015068,2]
[384536915,1757452243204,-480.0,0.00015068,2]
[384536917,1757452243214,-480.0,0.00015068,2]
[384536919,1757452243223,-480.0,0.00015068,2]
[384536921,1757452243233,-480.0,0.00015068,2]
[384536923,1757452243242,-480.0,0.00015068,2]
[384536925,1757452243251,-480.0,0.00015068,2]
[384536927,1757452243260,-4780.89,0.00015068,2]
[384536929,1757452243270,-709.07,0.00015068,2]
[384536931,1757452243279,-480.0,0.00015068,2]
[384536933,1757452243288,-480.0,0.00015068,2]
[384536935,1757452243297,-480.0,0.00015068,2]
[384536937,1757452243306,-633.95,0.00015068,2]
[384536939,1757452243316,-480.0,0.00015068,2]
[384536941,1757452243326,-538.03,0.00015068,2]
[384536943,1757452243335,-480.0,0.00015068,2]
[384536945,1757452243344,-582.39,0.00015068,2]
[384536947,1757452243353,-480.0,0.00015068,2]
[384536949,1757452243363,-480.0,0.00015068,2]
[384536951,1757452243372,-480.0,0.00015068,2]
[384536953,1757452243381,-480.0,0.00015068,2]
[384536955,1757452243390,-480.0,0.00015068,2]
[384536957,1757452243399,-480.0,0.00015068,2]
[384536959,1757452243409,-480.0,0.00015068,2]
[384536961,1757452243418,-1288.0,0.00015068,2]
[384536963,1757452243427,-480.0,0.00015068,2]
[384536966,1757452243437,-480.0,0.00015068,2]
[384536968,1757452243446,-480.0,0.00015068,2]
[384536970,1757452243455,-623.12,0.00015068,2]
[384536972,1757452243464,-500.87,0.00015068,2]
[384536974,1757452243474,-2207.32,0.00015068,2]
[384536976,1757452243484,-480.0,0.00015068,2]
[384536978,1757452243493,-480.0,0.00015068,2]
[384536980,1757452243502,-480.0,0.00015068,2]
[384536982,1757452243511,-501.92,0.00015068,2]
[384536984,1757452243520,-480.0,0.00015068,2]
[384536986,1757452243529,-480.0,0.00015068,2]
[384536988,1757452243538,-480.0,0.00015068,2]
[384536990,1757452243548,-566.6,0.00015068,2]
[384536992,1757452243557,-480.0,0.00015068,2]
[384536994,1757452243566,-480.0,0.00015068,2]
[384536996,1757452243576,-990.69,0.00015068,2]
[384536998,1757452243585,-628.07,0.00015068,2]
[384537000,1757452243594,-480.0,0.00015068,2]
[384537002,1757452243604,-926.17,0.00015068,2]
[384537004,1757452243613,-480.0,0.00015068,2]
[384537006,1757452243622,-542.61,0.00015068,2]
[384537008,1757452243631,-480.0,0.00015068,2]
[384537010,1757452243640,-262.734125,0.00015068,2]
[384537012,1757452243650,-1000.0,0.00015229,2]
[384537014,1757452243659,-500.0,0.00015243,2]
[384537016,1757452243668,-500.0,0.00015269,2]
[384537018,1757452243678,-500.0,0.00015294,2]
[384537020,1757452243687,-500.0,0.00015313,2]
[384537022,1757452243697,-1000.0,0.00015313,2]
[384537024,1757452243706,-480.0,0.00015342,2]
[384537026,1757452243715,-480.0,0.00015342,2]
[384537028,1757452243724,-480.0,0.00015342,2]
[384537030,1757452243734,-480.0,0.00015342,2]
[384537032,1757452243744,-480.0,0.00015342,2]
[384537034,1757452243753,-480.0,0.00015342,2]
[384537036,1757452243762,-480.0,0.00015342,2]
[384537038,1757452243772,-596.76298755,0.00015342,2]
[384537040,1757452243781,-480.0,0.00015342,2]
[384537042,1757452243791,-480.0,0.00015342,2]
[384537044,1757452243800,-480.0,0.00015342,2]
[384537046,1757452243810,-480.0,0.00015342,2]
[384537048,1757452243818,-480.0,0.00015342,2]
[384537050,1757452243827,-480.0,0.00015342,2]
[384537052,1757452243836,-480.0,0.00015342,2]
[384537054,1757452243846,-480.0,0.00015342,2]
[384537057,1757452243855,-480.0,0.00015342,2]
[384537059,1757452243866,-480.0,0.00015342,2]
[384537061,1757452243876,-480.0,0.00015342,2]
[384537063,1757452243885,-480.0,0.00015342,2]
[384537065,1757452243895,-4780.89,0.00015342,2]
[384537067,1757452243904,-709.07,0.00015342,2]
[384537069,1757452243914,-480.0,0.00015342,2]
[384537071,1757452243923,-480.0,0.00015342,2]
[384537073,1757452243932,-480.0,0.00015342,2]
[384537075,1757452243944,-633.95,0.00015342,2]
[384537077,1757452243954,-480.0,0.00015342,2]
[384537079,1757452243964,-538.03,0.00015342,2]
[384537081,1757452243974,-480.0,0.00015342,2]
[384537083,1757452243983,-582.39,0.00015342,2]
[384537085,1757452243993,-480.0,0.00015342,2]
[384537087,1757452244003,-480.0,0.00015342,2]
[384537089,1757452244012,-480.0,0.00015342,2]
[384537091,1757452244022,-385.58,0.00015342,2]
[384537093,1757452244032,-480.0,0.00015342,2]
[384537095,1757452244041,-480.0,0.00015342,2]
[384537097,1757452244051,-480.0,0.00015342,2]
[384537099,1757452244060,-1288.0,0.00015342,2]
[384537101,1757452244069,-480.0,0.00015342,2]
[384537103,1757452244079,-480.0,0.00015342,2]
[384537105,1757452244088,-480.0,0.00015342,2]
[384537107,1757452244098,-623.12,0.00015342,2]
[384537109,1757452244107,-500.87,0.00015342,2]
[384537111,1757452244117,-2207.32,0.00015342,2]
[384537113,1757452244126,-480.0,0.00015342,2]
[384537115,1757452244136,-480.0,0.00015342,2]
[384537117,1757452244147,-480.0,0.00015342,2]
[384537119,1757452244157,-501.92,0.00015342,2]
[384537121,1757452244166,-480.0,0.00015342,2]
[384537123,1757452244175,-480.0,0.00015342,2]
[384537125,1757452244185,-480.0,0.00015342,2]
[384537127,1757452244194,-566.6,0.00015342,2]
[384537129,1757452244203,-480.0,0.00015342,2]
[384537131,1757452244213,-480.0,0.00015342,2]
[384537134,1757452244222,-990.69,0.00015342,2]
[384537136,1757452244232,-628.07,0.00015342,2]
[384537138,1757452244241,-480.0,0.00015342,2]
[384537140,1757452244251,-926.17,0.00015342,2]
[384537142,1757452244259,-480.0,0.00015342,2]
[384537144,1757452244268,-542.61,0.00015342,2]
[384537146,1757452244278,-480.0,0.00015342,2]
[384537148,1757452244287,-720.0,0.00015368,2]
[384537150,1757452244297,-675.16319956,0.00015397,7]
[384537152,1757452244306,-260.0,0.00015486,2]
[384537154,1757452244315,-480.0,0.00015616,2]
[384537156,1757452244325,-507.87127919,0.00015616,2]
[384537157,1757452244334,-480.0,0.00015616,2]
[384537158,1757452244344,-480.0,0.00015616,2]
[384537159,1757452244353,-480.0,0.00015616,2]
[384537160,1757452244363,-480.0,0.00015616,2]
[384537161,1757452244373,-480.0,0.00015616,2]
[384537162,1757452244382,-235.50411752,0.00015616,2]
[384537163,1757452244391,-480.0,0.00015616,2]
[384537164,1757452244400,-480.0,0.00015616,2]
[384537165,1757452244409,-480.0,0.00015616,2]
[384537166,1757452244418,-441.26033741,0.00015616,2]
[384537167,1757452244427,-480.0,0.00015616,2]
[384537168,1757452244437,-480.0,0.00015616,2]
[384537169,1757452244446,-480.0,0.00015616,2]
[384537170,1757452244456,-480.0,0.00015616,2]
[384537171,1757452244466,-480.0,0.00015616,2]
[384537172,1757452244475,-480.0,0.00015616,2]
[384537173,1757452244486,-480.0,0.00015616,2]
[384537174,1757452244495,-4780.89,0.00015616,2]
[384537175,1757452244505,-709.07,0.00015616,2]
[384537176,1757452244515,-480.0,0.00015616,2]
[384537177,1757452244525,-480.0,0.00015616,2]
[384537178,1757452244534,-480.0,0.00015616,2]
[384537179,1757452244544,-633.95,0.00015616,2]
[384537181,1757452244554,-480.0,0.00015616,2]
[384537183,1757452244564,-538.03,0.00015616,2]
[384537186,1757452244573,-480.0,0.00015616,2]
[384537187,1757452244583,-582.39,0.00015616,2]
[384537189,1757452244592,-480.0,0.00015616,2]
[384537192,1757452244603,-480.0,0.00015616,2]
[384537193,1757452244613,-480.0,0.00015616,2]
[384537199,1757452244652,-480.0,0.00015616,2]
[384537201,1757452244662,-480.0,0.00015616,2]
[384537203,1757452244671,-480.0,0.00015616,2]
[384537205,1757452244681,-1288.0,0.00015616,2]
[384537207,1757452244690,-480.0,0.00015616,2]
[384537209,1757452244699,-480.0,0.00015616,2]
[384537211,1757452244708,-480.0,0.00015616,2]
[384537213,1757452244718,-623.12,0.00015616,2]
[384537215,1757452244727,-500.87,0.00015616,2]
[384537217,1757452244736,-2207.32,0.00015616,2]
[384537219,1757452244746,-480.0,0.00015616,2]
[384537221,1757452244755,-480.0,0.00015616,2]
[384537223,1757452244764,-480.0,0.00015616,2]
[384537224,1757452244773,-501.92,0.00015616,2]
[384537227,1757452244783,-480.0,0.00015616,2]
[384537228,1757452244792,-480.0,0.00015616,2]
[384537231,1757452244801,-480.0,0.00015616,2]
[384537233,1757452244811,-566.6,0.00015616,2]
[384537235,1757452244820,-480.0,0.00015616,2]
[384537237,1757452244829,-246.28506273,0.00015616,2]
[384537238,1757452244839,-990.69,0.00015616,2]
[384537240,1757452244848,-628.07,0.00015616,2]
[384537243,1757452244858,-480.0,0.00015616,2]
[384537244,1757452244871,-926.17,0.00015616,2]
[384537247,1757452244880,-480.0,0.00015616,2]
[384537248,1757452244889,-542.61,0.00015616,2]
[384537251,1757452244899,-480.0,0.00015616,2]
[384537253,1757452244909,-2000.0,0.000157,2]
[384537255,1757452244918,-500.0,0.00015715,2]
[384537257,1757452244928,-500.0,0.00015776,2]
[384537259,1757452244937,-1500.0,0.00015861,2]
[384537261,1757452244946,-480.0,0.0001589,2]
[384537263,1757452244956,-480.0,0.0001589,2]
[384537265,1757452244965,-480.0,0.0001589,2]
[384537267,1757452244974,-480.0,0.0001589,2]
[384537269,1757452244984,-579.57502831,0.0001589,2]
[384537271,1757452244993,-480.0,0.0001589,2]
[384537273,1757452245002,-480.0,0.0001589,2]
[384537275,1757452245012,-535.00395857,0.0001589,2]
[384537277,1757452245021,-480.0,0.0001589,2]
[384537279,1757452245030,-480.0,0.0001589,2]
[384537281,1757452245040,-480.0,0.0001589,2]
[384537283,1757452245050,-480.0,0.0001589,2]
[384537285,1757452245059,-283.62180326,0.0001589,2]
[384537287,1757452245068,-479.34035736,0.0001589,2]
[384537289,1757452245077,-480.0,0.0001589,2]
[384537291,1757452245086,-480.0,0.0001589,2]
[384537293,1757452245095,-4780.89,0.0001589,2]
[384537295,1757452245104,-709.07,0.0001589,2]
[384537297,1757452245113,-480.0,0.0001589,2]
[384537299,1757452245122,-480.0,0.0001589,2]
[384537301,1757452245131,-480.0,0.0001589,2]
[384537302,1757452245140,-633.95,0.0001589,2]
[384537304,1757452245150,-480.0,0.0001589,2]
[384537307,1757452245159,-538.03,0.0001589,2]
[384537309,1757452245169,-480.0,0.0001589,2]
[384537311,1757452245178,-582.39,0.0001589,2]
[384537313,1757452245187,-480.0,0.0001589,2]
[384537315,1757452245196,-480.0,0.0001589,2]
[384537317,1757452245206,-480.0,0.0001589,2]
[384537319,1757452245215,-480.0,0.0001589,2]
[384537321,1757452245224,-480.0,0.0001589,2]
[384537322,1757452245233,-480.0,0.0001589,2]
[384537325,1757452245243,-1288.0,0.0001589,2]
[384537327,1757452245252,-480.0,0.0001589,2]
[384537329,1757452245262,-480.0,0.0001589,2]
[384537330,1757452245271,-480.0,0.0001589,2]
[384537332,1757452245280,-623.12,0.0001589,2]
[384537334,1757452245289,-500.87,0.0001589,2]
[384537336,1757452245299,-2207.32,0.0001589,2]
[384537338,1757452245308,-480.0,0.0001589,2]
[384537341,1757452245317,-480.0,0.0001589,2]
[384537342,1757452245327,-480.0,0.0001589,2]
[384537345,1757452245336,-501.92,0.0001589,2]
[384537346,1757452245346,-480.0,0.0001589,2]
[384537348,1757452245356,-480.0,0.0001589,2]
[384537350,1757452245365,-480.0,0.0001589,2]
[384537352,1757452245374,-566.6,0.0001589,2]
[384537354,1757452245384,-480.0,0.0001589,2]
[384537357,1757452245393,-990.69,0.0001589,2]
[384537360,1757452245402,-628.07,0.0001589,2]
[384537363,1757452245412,-480.0,0.0001589,2]
[384537365,1757452245421,-926.17,0.0001589,2]
[384537367,1757452245431,-480.0,0.0001589,2]
[384537369,1757452245440,-542.61,0.0001589,2]
[384537371,1757452245449,-480.0,0.0001589,2]
[384537373,1757452245458,-150.0,0.00016,2]
[384537375,1757452245467,-360.0,0.00016034,2]
[384537377,1757452245476,-480.0,0.00016164,2]
[384537379,1757452245486,-480.0,0.00016164,2]
[384537380,1757452245495,-480.0,0.00016164,2]
[384537382,1757452245504,-480.0,0.00016164,2]
[384537384,1757452245513,-480.0,0.00016164,2]
[384537386,1757452245522,-480.0,0.00016164,2]
[384537387,1757452245531,-480.0,0.00016164,2]
[384537389,1757452245541,-480.0,0.00016164,2]
[384537392,1757452245551,-480.0,0.00016164,2]
[384537394,1757452245560,-480.0,0.00016164,2]
[384537395,1757452245570,-480.0,0.00016164,2]
[384537398,1757452245580,-480.0,0.00016164,2]
[384537400,1757452245589,-4780.89,0.00016164,2]
[384537401,1757452245598,-709.07,0.00016164,2]
[384537403,1757452245608,-480.0,0.00016164,2]
[384537405,1757452245617,-480.0,0.00016164,2]
[384537407,1757452245626,-480.0,0.00016164,2]
[384537409,1757452245636,-633.95,0.00016164,2]
[384537411,1757452245646,-480.0,0.00016164,2]
[384537414,1757452245656,-538.03,0.00016164,2]
[384537415,1757452245665,-480.0,0.00016164,2]
[384537417,1757452245674,-582.39,0.00016164,2]
[384537419,1757452245684,-480.0,0.00016164,2]
[384537421,1757452245693,-480.0,0.00016164,2]
[384537423,1757452245702,-480.0,0.00016164,2]
[384537425,1757452245711,-627.03859519,0.00016164,2]
[384537427,1757452245721,-480.0,0.00016164,2]
[384537430,1757452245731,-480.0,0.00016164,2]
[384537432,1757452245741,-1288.0,0.00016164,2]
[384537433,1757452245750,-480.0,0.00016164,2]
[384537435,1757452245760,-480.0,0.00016164,2]
[384537437,1757452245770,-480.0,0.00016164,2]
[384537440,1757452245779,-623.12,0.00016164,2]
[384537441,1757452245788,-500.87,0.00016164,2]
[384537443,1757452245798,-2207.32,0.00016164,2]
[384537445,1757452245807,-226.19567643,0.00016164,2]
[384537447,1757452245816,-480.0,0.00016164,2]
[384537449,1757452245825,-480.0,0.00016164,2]
[384537451,1757452245835,-501.92,0.00016164,2]
[384537453,1757452245844,-480.0,0.00016164,2]
[384537455,1757452245853,-480.0,0.00016164,2]
[384537457,1757452245863,-204.18705507,0.00016164,2]
[384537459,1757452245877,-566.6,0.00016164,2]
[384537461,1757452245886,-480.0,0.00016164,2]
[384537463,1757452245896,-990.69,0.00016164,2]
[384537465,1757452245905,-628.07,0.00016164,2]
[384537467,1757452245915,-480.0,0.00016164,2]
[384537470,1757452245924,-926.17,0.00016164,2]
[384537472,1757452245934,-480.0,0.00016164,2]
[384537474,1757452245944,-542.61,0.00016164,2]
[384537476,1757452245954,-404.45528765,0.00016164,2]
[384537477,1757452245964,-246.06910193,0.0001639,2]
[384537479,1757452245974,-151.0,0.0001639,2]
[384537481,1757452245984,-500.0,0.0001639,2]
[384537483,1757452245993,-151.0,0.0001639,2]
[384537485,1757452246003,-151.0,0.0001639,2]
[384537487,1757452246013,-500.0,0.0001639,2]
[384537489,1757452246023,-500.0,0.0001639,2]
[384537491,1757452246032,-151.0,0.0001639,2]
[384537493,1757452246042,-151.0,0.0001639,2]
[384537495,1757452246051,-500.0,0.0001639,2]
[384537497,1757452246061,-151.0,0.0001639,2]
[384537499,1757452246071,-300.11116599,0.0001639,2]
[384537501,1757452246080,-1000.0,0.0001639,2]
[384537503,1757452246090,-500.0,0.0001639,2]
[384537505,1757452246100,-151.0,0.0001639,2]
[384537507,1757452246109,-1000.0,0.0001639,2]
[384537509,1757452246119,-151.0,0.0001639,2]
[384537511,1757452246129,-500.0,0.0001639,2]
[384537513,1757452246138,-1000.0,0.0001639,2]
[384537515,1757452246147,-151.0,0.0001639,2]
[384537517,1757452246157,-500.0,0.0001639,2]
[384537519,1757452246166,-1000.0,0.0001639,2]
[384537521,1757452246175,-151.0,0.0001639,2]
[384537523,1757452246184,-500.0,0.0001639,2]
[384537525,1757452246194,-1000.0,0.0001639,2]
[384537527,1757452246203,-500.0,0.0001639,2]
[384537529,1757452246213,-151.0,0.0001639,2]
[384537531,1757452246223,-500.0,0.0001639,2]
[384537532,1757452246232,-215.24533376,0.0001639,2]
[384537534,1757452246242,-500.0,0.0001639,2]
[384537536,1757452246251,-1000.0,0.0001639,2]
[384537538,1757452246261,-170.05616253,0.0001639,2]
[384537540,1757452246271,-1000.0,0.0001639,2]
[384537542,1757452246280,-500.0,0.0001639,2]
[384537544,1757452246289,-151.19246068,0.0001639,2]
[384537546,1757452246299,-1000.0,0.0001639,2]
[384537548,1757452246308,-500.0,0.0001639,2]
[384537550,1757452246317,-1145.9850186,0.0001639,2]
[384537552,1757452246327,-500.0,0.0001639,2]
[384537554,1757452246336,-500.0,0.0001639,2]
[384537556,1757452246345,-500.0,0.0001639,2]
[384537558,1757452246355,-500.0,0.0001639,2]
[384537560,1757452246364,-500.0,0.0001639,2]
[384537562,1757452246373,-151.0,0.0001639,2]
[384537564,1757452246383,-151.0,0.0001639,2]
[384537566,1757452246393,-151.62745434,0.0001639,2]
[384537568,1757452246402,-520.0,0.00016438,3]
[384537569,1757452246411,-440.0,0.00016438,3]
[384537571,1757452246421,-480.0,0.00016438,2]
[384537573,1757452246431,-480.0,0.00016438,2]
[384537575,1757452246440,-420.9516337,0.00016438,2]
[384537577,1757452246450,-315.69331896,0.00016438,2]
[384537579,1757452246460,-480.0,0.00016438,2]
[384537581,1757452246469,-480.0,0.00016438,2]
[384537583,1757452246479,-480.0,0.00016438,2]
[384537585,1757452246489,-309.03355887,0.00016438,2]
[384537587,1757452246498,-480.0,0.00016438,2]
[384537589,1757452246508,-480.0,0.00016438,2]
[384537591,1757452246518,-610.65585767,0.00016438,2]
[384537593,1757452246528,-480.0,0.00016438,2]
[384537595,1757452246538,-4780.89,0.00016438,2]
[384537597,1757452246547,-709.07,0.00016438,2]
[384537599,1757452246558,-480.0,0.00016438,2]
[384537601,1757452246567,-480.0,0.00016438,2]
[384537603,1757452246577,-480.0,0.00016438,2]
[384537605,1757452246587,-633.95,0.00016438,2]
[384537607,1757452246596,-480.0,0.00016438,2]
[384537608,1757452246606,-538.03,0.00016438,2]
[384537610,1757452246615,-332.91241076,0.00016438,2]
[384537612,1757452246625,-582.39,0.00016438,2]
[384537614,1757452246635,-480.0,0.00016438,2]
[384537616,1757452246645,-480.0,0.00016438,2]
[384537618,1757452246655,-480.0,0.00016438,2]
[384537620,1757452246664,-480.0,0.00016438,2]
[384537622,1757452246674,-480.0,0.00016438,2]
[384537624,1757452246685,-1288.0,0.00016438,2]
[384537626,1757452246695,-521.73954986,0.00016438,2]
[384537628,1757452246705,-480.0,0.00016438,2]
[384537630,1757452246716,-357.35293008,0.00016438,2]
[384537632,1757452246726,-623.12,0.00016438,2]
[384537634,1757452246735,-500.87,0.00016438,2]
[384537636,1757452246746,-2207.32,0.00016438,2]
[384537638,1757452246755,-480.0,0.00016438,2]
[384537640,1757452246765,-480.0,0.00016438,2]
[384537642,1757452246775,-501.92,0.00016438,2]
[384537644,1757452246785,-480.0,0.00016438,2]
[384537646,1757452246794,-480.0,0.00016438,2]
[384537648,1757452246804,-566.6,0.00016438,2]
[384537650,1757452246815,-480.0,0.00016438,2]
[384537652,1757452246824,-990.69,0.00016438,2]
[384537653,1757452246833,-628.07,0.00016438,2]
[384537655,1757452246843,-480.0,0.00016438,2]
[384537657,1757452246852,-926.17,0.00016438,2]
[384537659,1757452246862,-480.0,0.00016438,2]
[384537661,1757452246875,-542.61,0.00016438,2]
[384537663,1757452246885,-500.0,0.00016543,2]
[384537665,1757452246894,-460.0,0.00016582,2]
[384537667,1757452246904,-200.78565816,0.00016712,2]
[384537669,1757452246913,-480.0,0.00016712,2]
[384537671,1757452246923,-480.0,0.00016712,2]
[384537673,1757452246933,-480.0,0.00016712,2]
[384537675,1757452246943,-480.0,0.00016712,2]
[384537677,1757452246953,-480.0,0.00016712,2]
[384537679,1757452246963,-480.0,0.00016712,2]
[384537681,1757452246972,-480.0,0.00016712,2]
[384537683,1757452246983,-4780.89,0.00016712,2]
[384537685,1757452246992,-709.07,0.00016712,2]
[384537687,1757452247006,-304.60092415,0.00016712,2]
[384537689,1757452247016,-157.22347825,0.00016712,2]
[384537691,1757452247026,-480.0,0.00016712,2]
[384537693,1757452247036,-633.95,0.00016712,2]
[384537694,1757452247046,-480.0,0.00016712,2]
[384537696,1757452247055,-538.03,0.00016712,2]
[384537698,1757452247066,-582.39,0.00016712,2]
[384537700,1757452247076,-480.0,0.00016712,2]
[384537702,1757452247085,-480.0,0.00016712,2]
[384537704,1757452247095,-480.0,0.00016712,2]
[384537706,1757452247104,-480.0,0.00016712,2]
[384537708,1757452247114,-480.0,0.00016712,2]
[384537710,1757452247124,-1288.0,0.00016712,2]
[384537712,1757452247135,-480.0,0.00016712,2]
[384537714,1757452247144,-623.12,0.00016712,2]
[384537716,1757452247154,-500.87,0.00016712,2]
[384537718,1757452247164,-2207.32,0.00016712,2]
[384537720,1757452247174,-480.0,0.00016712,2]
[384537722,1757452247184,-480.0,0.00016712,2]
[384537724,1757452247193,-501.92,0.00016712,2]
[384537726,1757452247203,-480.0,0.00016712,2]
[384537728,1757452247213,-480.0,0.00016712,2]
[384537730,1757452247223,-566.6,0.00016712,2]
[384537732,1757452247233,-480.0,0.00016712,2]
[384537734,1757452247242,-990.69,0.00016712,2]
[384537736,1757452247252,-628.07,0.00016712,2]
[384537738,1757452247262,-480.0,0.00016712,2]
[384537740,1757452247272,-926.17,0.00016712,2]
[384537742,1757452247281,-480.0,0.00016712,2]
[384537744,1757452247291,-542.61,0.00016712,2]
[384537746,1757452247301,-864.0,0.00016905,2]
[384537747,1757452247311,-500.0,0.00016968,2]
[384537749,1757452247320,-500.0,0.00016968,2]
[384537751,1757452247329,-480.0,0.00016986,2]
[384537753,1757452247339,-483.73429237,0.00016986,2]
[384537755,1757452247348,-480.0,0.00016986,2]
[384537757,1757452247358,-480.0,0.00016986,2]
[384537759,1757452247368,-620.77423015,0.00016986,2]
[384537761,1757452247377,-480.0,0.00016986,2]
[384537763,1757452247387,-480.0,0.00016986,2]
[384537765,1757452247397,-4780.89,0.00016986,2]
[384537767,1757452247406,-709.07,0.00016986,2]
[384537769,1757452247415,-480.0,0.00016986,2]
[384537771,1757452247426,-633.95,0.00016986,2]
[384537773,1757452247435,-480.0,0.00016986,2]
[384537775,1757452247445,-538.03,0.00016986,2]
[384537777,1757452247454,-582.39,0.00016986,2]
[384537779,1757452247464,-480.0,0.00016986,2]
[384537781,1757452247476,-480.0,0.00016986,2]
[384537783,1757452247486,-480.0,0.00016986,2]
[384537785,1757452247495,-480.0,0.00016986,2]
[384537787,1757452247505,-480.0,0.00016986,2]
[384537789,1757452247515,-1288.0,0.00016986,2]
[384537791,1757452247525,-480.0,0.00016986,2]
[384537793,1757452247534,-623.12,0.00016986,2]
[384537795,1757452247546,-500.87,0.00016986,2]
[384537797,1757452247556,-2207.32,0.00016986,2]
[384537799,1757452247565,-480.0,0.00016986,2]
[384537801,1757452247574,-480.0,0.00016986,2]
[384537803,1757452247583,-501.92,0.00016986,2]
[384537804,1757452247593,-480.0,0.00016986,2]
[384537806,1757452247603,-480.0,0.00016986,2]
[384537808,1757452247613,-566.6,0.00016986,2]
[384537810,1757452247622,-480.0,0.00016986,2]
[384537812,1757452247631,-990.69,0.00016986,2]